[Event "*** Titled Tuesday Blitz"]
[Site "Chess.com"]
[Date "2021.03.16"]
[Round "10"]
[White "zverr1"]
[Black "Skatchkov_V"]
[Result "0-1"]
[WhiteElo "2487"]
[BlackElo "2626"]
[TimeControl "180+1"]
[EndTime "11:54:47 PDT"]
[Termination "Skatchkov_V won by resignation"]

1. d4 {[%clk 0:03:00.9]} 1... Nf6 {[%clk 0:02:57.7]} 2. c4 {[%clk 0:03:01.3]}
2... e6 {[%clk 0:02:58.2]} 3. Nc3 {[%clk 0:03:01.8]} 3... Bb4 {[%clk 0:02:57.3]}
4. Nf3 {[%clk 0:03:00.9]} 4... d5 {[%clk 0:02:56.2]} 5. Bg5 {[%clk 0:02:59.7]}
5... dxc4 {[%clk 0:02:49.7]} 6. e4 {[%clk 0:02:53.6]} 6... h6 {[%clk 0:02:42.7]}
7. Bxf6 {[%clk 0:02:52.5]} 7... Qxf6 {[%clk 0:02:43.6]} 8. Bxc4 {[%clk
0:02:51.2]} 8... c5 {[%clk 0:02:43.5]} 9. e5 {[%clk 0:02:51.1]} 9... Qd8 {[%clk
0:02:43.4]} 10. O-O {[%clk 0:02:48.6]} 10... cxd4 {[%clk 0:02:43.7]} 11. Ne4
{[%clk 0:02:49.1]} 11... Nc6 {[%clk 0:02:38.4]} 12. Qe2 {[%clk 0:02:40.6]} 12...
O-O {[%clk 0:02:35]} 13. Rad1 {[%clk 0:02:39.7]} 13... Be7 {[%clk 0:02:32.9]}
14. Bd3 {[%clk 0:02:32.8]} 14... b6 {[%clk 0:02:28.7]} 15. Ng3 {[%clk
0:02:28.7]} 15... Bb7 {[%clk 0:02:29.1]} 16. Qe4 {[%clk 0:02:28.9]} 16... g6
{[%clk 0:02:29.5]} 17. Qf4 {[%clk 0:02:25.4]} 17... Bg5 {[%clk 0:02:25.7]} 18.
Qg4 {[%clk 0:02:20.2]} 18... Nb4 {[%clk 0:02:20.2]} 19. Bxg6 {[%clk 0:01:59.3]}
19... fxg6 {[%clk 0:02:20.1]} 20. h4 {[%clk 0:01:44]} 20... Bxf3 {[%clk
0:02:19.6]} 21. gxf3 {[%clk 0:01:36.8]} 21... Bxh4 {[%clk 0:00:56.6]} 22. Qxg6+
{[%clk 0:01:28]} 22... Kh8 {[%clk 0:00:57]} 23. Qxh6+ {[%clk 0:01:18]} 23... Kg8
{[%clk 0:00:57.3]} 24. Qg6+ {[%clk 0:01:10]} 24... Kh8 {[%clk 0:00:57.4]} 25.
Qh6+ {[%clk 0:01:10.3]} 25... Kg8 {[%clk 0:00:57.8]} 26. Qxe6+ {[%clk
0:00:56.8]} 26... Rf7 {[%clk 0:00:57.4]} 27. Qg4+ {[%clk 0:00:47.8]} 27... Rg7
{[%clk 0:00:56.7]} 28. Qe6+ {[%clk 0:00:43.7]} 28... Kh8 {[%clk 0:00:57.1]} 29.
Kg2 {[%clk 0:00:31]} 29... Rc8 {[%clk 0:00:55.3]} 30. Qh6+ {[%clk 0:00:14.5]}
30... Rh7 {[%clk 0:00:55.3]} 31. Qg6 {[%clk 0:00:14.1]} 31... Rc6 {[%clk
0:00:54.2]} 32. Qe4 {[%clk 0:00:14.5]} 32... Bxg3 {[%clk 0:00:38.6]} 33. fxg3
{[%clk 0:00:09.8]} 33... Rch6 {[%clk 0:00:33]} 34. Rh1 {[%clk 0:00:02.7]} 34...
Rxh1 {[%clk 0:00:29.2]} 35. Rxh1 {[%clk 0:00:03.6]} 35... Rxh1 {[%clk
0:00:30.1]} 36. Kxh1 {[%clk 0:00:04.5]} 36... d3 {[%clk 0:00:29.9]} 37. e6
{[%clk 0:00:03.3]} 37... d2 {[%clk 0:00:30]} 38. Qe5+ {[%clk 0:00:03.8]} 38...
Kg8 {[%clk 0:00:29.5]} 39. e7 {[%clk 0:00:02]} 39... d1=Q+ {[%clk 0:00:29.8]}
40. Kg2 {[%clk 0:00:02.9]} 40... Q8d2+ {[%clk 0:00:27.7]} 41. Kh3 {[%clk
0:00:03.2]} 41... Qh1+ {[%clk 0:00:28.6]} 42. Kg4 {[%clk 0:00:03.6]} 42... Qd7+
{[%clk 0:00:29.5]} 43. Kf4 {[%clk 0:00:03.1]} 43... Nd3+ {[%clk 0:00:29.9]} 0-1

[Event "*** Titled Tuesday Blitz"]
[Site "Chess.com"]
[Date "2021.03.16"]
[Round "10"]
[White "MustafayevFarid2004"]
[Black "Ranindu2003"]
[Result "0-1"]
[WhiteElo "2478"]
[BlackElo "2595"]
[TimeControl "180+1"]
[EndTime "11:54:55 PDT"]
[Termination "Ranindu2003 won on time"]

1. d4 {[%clk 0:03:00.9]} 1... Nf6 {[%clk 0:03:00.4]} 2. c4 {[%clk 0:03:00.9]}
2... e6 {[%clk 0:03:00.9]} 3. Nc3 {[%clk 0:03:01.1]} 3... c5 {[%clk 0:03:01.4]}
4. d5 {[%clk 0:03:00.9]} 4... exd5 {[%clk 0:03:01.9]} 5. cxd5 {[%clk 0:03:01.8]}
5... d6 {[%clk 0:03:02.5]} 6. e4 {[%clk 0:02:59]} 6... g6 {[%clk 0:03:02.8]} 7.
f4 {[%clk 0:02:58.6]} 7... Nbd7 {[%clk 0:02:56.2]} 8. Nf3 {[%clk 0:02:58.1]}
8... Bg7 {[%clk 0:02:54.2]} 9. Be2 {[%clk 0:02:55.3]} 9... O-O {[%clk
0:02:53.6]} 10. O-O {[%clk 0:02:52.9]} 10... Re8 {[%clk 0:02:52.9]} 11. Nd2
{[%clk 0:02:51.5]} 11... a6 {[%clk 0:02:49.4]} 12. a4 {[%clk 0:02:50.8]} 12...
Rb8 {[%clk 0:02:29.8]} 13. Qc2 {[%clk 0:02:41.8]} 13... Qe7 {[%clk 0:02:24.1]}
14. a5 {[%clk 0:02:10.2]} 14... b5 {[%clk 0:02:17.9]} 15. axb6 {[%clk
0:02:08.4]} 15... Nxb6 {[%clk 0:02:17.2]} 16. Bf3 {[%clk 0:02:00.2]} 16... Nfd7
{[%clk 0:02:13]} 17. Re1 {[%clk 0:01:58.4]} 17... c4 {[%clk 0:02:12.1]} 18. Nf1
{[%clk 0:01:48.6]} 18... Nc5 {[%clk 0:02:08.2]} 19. Be3 {[%clk 0:01:32.3]} 19...
Nd3 {[%clk 0:02:06.5]} 20. Re2 {[%clk 0:01:27.3]} 20... h5 {[%clk 0:01:52.4]}
21. Rd1 {[%clk 0:01:06.5]} 21... Bg4 {[%clk 0:01:41]} 22. Bxg4 {[%clk
0:01:02.9]} 22... hxg4 {[%clk 0:01:41.9]} 23. Rxd3 {[%clk 0:00:36.1]} 23... cxd3
{[%clk 0:01:42.8]} 24. Qxd3 {[%clk 0:00:36.7]} 24... Bxc3 {[%clk 0:01:37.9]} 25.
Qxc3 {[%clk 0:00:33.2]} 25... Qxe4 {[%clk 0:01:36.1]} 26. Ng3 {[%clk 0:00:32.7]}
26... Qxd5 {[%clk 0:01:09.6]} 27. f5 {[%clk 0:00:20]} 27... Nc4 {[%clk
0:00:51.4]} 28. fxg6 {[%clk 0:00:18.1]} 28... fxg6 {[%clk 0:00:46.2]} 29. Bh6
{[%clk 0:00:16.9]} 29... Ne5 {[%clk 0:00:41.3]} 30. Ne4 {[%clk 0:00:15.3]} 30...
Re6 {[%clk 0:00:20.5]} 31. Bg5 {[%clk 0:00:11.9]} 31... Rf8 {[%clk 0:00:19.3]}
32. Nf2 {[%clk 0:00:07.5]} 32... Nf3+ {[%clk 0:00:13.3]} 33. gxf3 {[%clk
0:00:07.7]} 33... Rxe2 {[%clk 0:00:13.9]} 34. Bh6 {[%clk 0:00:07.2]} 34... Rf6
{[%clk 0:00:14.4]} 35. Qxf6 {[%clk 0:00:04.9]} 35... Re1+ {[%clk 0:00:14.2]} 36.
Kg2 {[%clk 0:00:04.3]} 36... gxf3+ {[%clk 0:00:14.3]} 37. Qxf3 {[%clk
0:00:05.2]} 37... Rg1+ {[%clk 0:00:14.4]} 0-1

[Event "*** Titled Tuesday Blitz"]
[Site "Chess.com"]
[Date "2021.03.16"]
[Round "10"]
[White "AlexPapasimakopoulos"]
[Black "GMKrikor"]
[Result "0-1"]
[WhiteElo "2625"]
[BlackElo "2764"]
[TimeControl "180+1"]
[EndTime "11:54:57 PDT"]
[Termination "GMKrikor won on time"]

1. d4 {[%clk 0:03:00.9]} 1... Nf6 {[%clk 0:02:59.5]} 2. c4 {[%clk 0:03:00.9]}
2... g6 {[%clk 0:02:59.4]} 3. Nc3 {[%clk 0:03:00.9]} 3... d5 {[%clk 0:02:58.3]}
4. Nf3 {[%clk 0:03:00.8]} 4... Bg7 {[%clk 0:02:58.1]} 5. Qb3 {[%clk 0:03:01.2]}
5... dxc4 {[%clk 0:02:56.2]} 6. Qxc4 {[%clk 0:03:02.1]} 6... O-O {[%clk
0:02:55.8]} 7. e4 {[%clk 0:03:02.6]} 7... Nc6 {[%clk 0:02:55.6]} 8. Be2 {[%clk
0:03:01.2]} 8... e5 {[%clk 0:02:48.8]} 9. d5 {[%clk 0:02:48.5]} 9... Nd4 {[%clk
0:02:48.6]} 10. Nxd4 {[%clk 0:02:30.1]} 10... exd4 {[%clk 0:02:49.5]} 11. Qxd4
{[%clk 0:02:31]} 11... c6 {[%clk 0:02:49]} 12. d6 {[%clk 0:02:31.1]} 12... Re8
{[%clk 0:02:23.1]} 13. Qd3 {[%clk 0:02:30.3]} 13... b5 {[%clk 0:01:54.5]} 14. a3
{[%clk 0:02:26.9]} 14... Be6 {[%clk 0:01:35.2]} 15. Qd1 {[%clk 0:02:16.8]} 15...
a5 {[%clk 0:01:27.1]} 16. e5 {[%clk 0:02:01.1]} 16... Nd5 {[%clk 0:01:17.4]} 17.
f4 {[%clk 0:01:59]} 17... f6 {[%clk 0:01:10]} 18. Bf3 {[%clk 0:01:46.9]} 18...
Nxc3 {[%clk 0:00:56.5]} 19. bxc3 {[%clk 0:01:47.8]} 19... Qb6 {[%clk 0:00:56.6]}
20. Qd4 {[%clk 0:01:42.3]} 20... c5 {[%clk 0:00:52]} 21. Qf2 {[%clk 0:01:25.7]}
21... Rac8 {[%clk 0:00:43.6]} 22. Bd5 {[%clk 0:00:55.5]} 22... fxe5 {[%clk
0:00:34.9]} 23. d7 {[%clk 0:00:52.1]} 23... Bxd5 {[%clk 0:00:34.4]} 24. dxc8=Q
{[%clk 0:00:48.8]} 24... Rxc8 {[%clk 0:00:33.4]} 25. O-O {[%clk 0:00:41.7]}
25... exf4 {[%clk 0:00:22.2]} 26. Bxf4 {[%clk 0:00:36.1]} 26... Bxc3 {[%clk
0:00:19.9]} 27. Rac1 {[%clk 0:00:31.8]} 27... b4 {[%clk 0:00:17.7]} 28. axb4
{[%clk 0:00:23.8]} 28... axb4 {[%clk 0:00:18.6]} 29. Rxc3 {[%clk 0:00:16.6]}
29... bxc3 {[%clk 0:00:18.5]} 30. Bh6 {[%clk 0:00:17.3]} 30... Qd6 {[%clk
0:00:13.7]} 31. Qe3 {[%clk 0:00:10.7]} 31... Bf7 {[%clk 0:00:07.6]} 32. Kh1
{[%clk 0:00:07.3]} 32... c2 {[%clk 0:00:06.7]} 33. Qc3 {[%clk 0:00:06.6]} 33...
Qd4 {[%clk 0:00:06.9]} 34. Qxc2 {[%clk 0:00:07.1]} 34... c4 {[%clk 0:00:06.9]}
35. Qb1 {[%clk 0:00:05.7]} 35... Qd5 {[%clk 0:00:04.2]} 36. Qb2 {[%clk
0:00:04.5]} 36... c3 {[%clk 0:00:04.3]} 37. Qc2 {[%clk 0:00:03.4]} 37... Qd2
{[%clk 0:00:02.7]} 38. Qa4 {[%clk 0:00:01.6]} 38... Qd5 {[%clk 0:00:02.4]} 39.
Qa1 {[%clk 0:00:01.9]} 39... Qe6 {[%clk 0:00:02.2]} 0-1

[Event "*** Titled Tuesday Blitz"]
[Site "Chess.com"]
[Date "2021.03.16"]
[Round "10"]
[White "PavelShkapenko"]
[Black "Niktlt"]
[Result "0-1"]
[WhiteElo "2694"]
[BlackElo "2540"]
[TimeControl "180+1"]
[EndTime "11:54:57 PDT"]
[Termination "Niktlt won by resignation"]

1. e4 {[%clk 0:03:00.9]} 1... e6 {[%clk 0:03:00.1]} 2. d4 {[%clk 0:02:58.1]}
2... d5 {[%clk 0:03:00.4]} 3. exd5 {[%clk 0:02:58.7]} 3... exd5 {[%clk
0:03:01.3]} 4. Nf3 {[%clk 0:02:58.9]} 4... Nf6 {[%clk 0:03:00.9]} 5. c4 {[%clk
0:02:57.5]} 5... Nc6 {[%clk 0:02:59.4]} 6. h3 {[%clk 0:02:56.4]} 6... Bb4+
{[%clk 0:02:58.5]} 7. Nc3 {[%clk 0:02:56.2]} 7... O-O {[%clk 0:02:59]} 8. Be2
{[%clk 0:02:56.1]} 8... dxc4 {[%clk 0:02:59]} 9. Bxc4 {[%clk 0:02:56.3]} 9...
Re8+ {[%clk 0:02:58.5]} 10. Be3 {[%clk 0:02:56.3]} 10... Nd5 {[%clk 0:02:48.4]}
11. Bxd5 {[%clk 0:02:29.2]} 11... Qxd5 {[%clk 0:02:49.3]} 12. O-O {[%clk
0:02:29.5]} 12... Qa5 {[%clk 0:02:43.7]} 13. d5 {[%clk 0:02:20.6]} 13... Ne7
{[%clk 0:02:39.8]} 14. Bd4 {[%clk 0:02:13.5]} 14... Bxc3 {[%clk 0:02:19.5]} 15.
Bxc3 {[%clk 0:02:04.9]} 15... Qxd5 {[%clk 0:02:19.5]} 16. Qa4 {[%clk 0:01:58.9]}
16... Bxh3 {[%clk 0:02:04.4]} 17. Rad1 {[%clk 0:01:49.7]} 17... Qh5 {[%clk
0:02:03.6]} 18. Rfe1 {[%clk 0:01:39.8]} 18... Nc6 {[%clk 0:01:57]} 19. Qf4
{[%clk 0:01:06.1]} 19... Bg4 {[%clk 0:01:46.1]} 20. Re3 {[%clk 0:00:53.9]} 20...
Rxe3 {[%clk 0:01:34.2]} 21. fxe3 {[%clk 0:00:53.9]} 21... Bxf3 {[%clk
0:01:30.9]} 22. gxf3 {[%clk 0:00:48.3]} 22... Re8 {[%clk 0:01:20.5]} 23. Kf2
{[%clk 0:00:46]} 23... Ne7 {[%clk 0:00:57]} 24. Qxc7 {[%clk 0:00:28.9]} 24...
Nf5 {[%clk 0:00:47.4]} 25. Qf4 {[%clk 0:00:25.3]} 25... h6 {[%clk 0:00:25.8]}
26. e4 {[%clk 0:00:23.2]} 26... Ne7 {[%clk 0:00:25.5]} 27. Rg1 {[%clk
0:00:16.8]} 27... Qc5+ {[%clk 0:00:21.3]} 28. Qe3 {[%clk 0:00:16]} 28... Qxe3+
{[%clk 0:00:20.5]} 29. Kxe3 {[%clk 0:00:16.4]} 29... Nd5+ {[%clk 0:00:21.4]} 30.
Kd4 {[%clk 0:00:16.4]} 30... Nxc3 {[%clk 0:00:22.1]} 31. Kxc3 {[%clk 0:00:17.1]}
31... Rc8+ {[%clk 0:00:22.1]} 32. Kd3 {[%clk 0:00:16.8]} 32... h5 {[%clk
0:00:22.6]} 33. Rg5 {[%clk 0:00:15.5]} 33... g6 {[%clk 0:00:22.6]} 34. f4 {[%clk
0:00:16.1]} 34... Kg7 {[%clk 0:00:22.8]} 35. e5 {[%clk 0:00:16.4]} 35... Rc6
{[%clk 0:00:20.3]} 36. Rg2 {[%clk 0:00:16.2]} 36... Rc7 {[%clk 0:00:17.1]} 37.
b4 {[%clk 0:00:16.3]} 37... Kf8 {[%clk 0:00:15.9]} 38. a4 {[%clk 0:00:16]} 38...
Ke7 {[%clk 0:00:16]} 39. Kd4 {[%clk 0:00:15.5]} 39... Ke6 {[%clk 0:00:16.1]} 40.
Ke3 {[%clk 0:00:14.2]} 40... Rc4 {[%clk 0:00:15.1]} 41. Rb2 {[%clk 0:00:12.4]}
41... Kf5 {[%clk 0:00:15.4]} 42. Rd2 {[%clk 0:00:12.5]} 42... Re4+ {[%clk
0:00:15.7]} 43. Kd3 {[%clk 0:00:11.6]} 43... Rxf4 {[%clk 0:00:15.6]} 44. Rc2
{[%clk 0:00:10.4]} 44... h4 {[%clk 0:00:12.9]} 45. Rc7 {[%clk 0:00:11.3]} 45...
Ke6 {[%clk 0:00:13]} 46. Rc8 {[%clk 0:00:09]} 46... Rxb4 {[%clk 0:00:12.4]} 0-1

[Event "*** Titled Tuesday Blitz"]
[Site "Chess.com"]
[Date "2021.03.16"]
[Round "10"]
[White "Natalya_Buksa"]
[Black "dpopadic"]
[Result "1/2-1/2"]
[WhiteElo "2502"]
[BlackElo "2365"]
[TimeControl "180+1"]
[EndTime "11:55:00 PDT"]
[Termination "Game drawn by repetition"]

1. d4 {[%clk 0:02:15.7]} 1... Nf6 {[%clk 0:02:59.1]} 2. Nc3 {[%clk 0:02:15.1]}
2... d5 {[%clk 0:02:58.2]} 3. Bf4 {[%clk 0:02:14.5]} 3... c6 {[%clk 0:02:57.7]}
4. e3 {[%clk 0:02:14.2]} 4... g6 {[%clk 0:02:57.4]} 5. h4 {[%clk 0:02:11.4]}
5... h5 {[%clk 0:02:56.2]} 6. Nf3 {[%clk 0:02:11.1]} 6... Bg4 {[%clk 0:02:53.8]}
7. Be2 {[%clk 0:02:10.9]} 7... Nbd7 {[%clk 0:02:48.9]} 8. Ne5 {[%clk 0:02:10.8]}
8... Bxe2 {[%clk 0:02:47.8]} 9. Qxe2 {[%clk 0:02:10.3]} 9... Bg7 {[%clk
0:02:35.8]} 10. O-O-O {[%clk 0:02:09.5]} 10... Nxe5 {[%clk 0:02:26.7]} 11. Bxe5
{[%clk 0:02:07.8]} 11... b5 {[%clk 0:02:17.8]} 12. f3 {[%clk 0:02:07]} 12... Qd7
{[%clk 0:02:08.5]} 13. g4 {[%clk 0:01:44.8]} 13... hxg4 {[%clk 0:01:57.8]} 14.
fxg4 {[%clk 0:01:43.5]} 14... O-O-O {[%clk 0:01:53.7]} 15. a4 {[%clk 0:01:34]}
15... a6 {[%clk 0:01:52.8]} 16. axb5 {[%clk 0:01:30.9]} 16... axb5 {[%clk
0:01:52.7]} 17. Na2 {[%clk 0:01:26]} 17... Kb7 {[%clk 0:01:51.8]} 18. Nb4 {[%clk
0:01:24]} 18... Rdg8 {[%clk 0:01:40.4]} 19. g5 {[%clk 0:01:13.6]} 19... Ne4
{[%clk 0:01:37.3]} 20. Nd3 {[%clk 0:01:06.8]} 20... Bxe5 {[%clk 0:01:32.7]} 21.
Nxe5 {[%clk 0:01:06.6]} 21... Qe6 {[%clk 0:01:30.6]} 22. Qf3 {[%clk 0:01:01.7]}
22... f6 {[%clk 0:01:19.3]} 23. gxf6 {[%clk 0:01:01.4]} 23... exf6 {[%clk
0:01:18.9]} 24. Nd3 {[%clk 0:01:00.9]} 24... Kb6 {[%clk 0:01:11.3]} 25. Nf2
{[%clk 0:00:57.6]} 25... Qf5 {[%clk 0:01:03.6]} 26. Qxf5 {[%clk 0:00:45.1]}
26... gxf5 {[%clk 0:01:03.8]} 27. Nd3 {[%clk 0:00:45.5]} 27... Rg4 {[%clk
0:00:56.8]} 28. h5 {[%clk 0:00:43.3]} 28... Rg5 {[%clk 0:00:54.4]} 29. Nf4
{[%clk 0:00:41.8]} 29... Nf2 {[%clk 0:00:52.2]} 30. Rdf1 {[%clk 0:00:39.4]}
30... Nxh1 {[%clk 0:00:50.5]} 31. Rxh1 {[%clk 0:00:40.3]} 31... Rh6 {[%clk
0:00:49.3]} 32. Kd2 {[%clk 0:00:38.8]} 32... Rg8 {[%clk 0:00:45.8]} 33. Ke2
{[%clk 0:00:38.9]} 33... Rg5 {[%clk 0:00:39.9]} 34. Kf3 {[%clk 0:00:37.2]} 34...
Kb7 {[%clk 0:00:37.4]} 35. b4 {[%clk 0:00:30.2]} 35... Kb6 {[%clk 0:00:36.3]}
36. c3 {[%clk 0:00:30.4]} 36... Kb7 {[%clk 0:00:36.2]} 37. Kf2 {[%clk
0:00:29.1]} 37... Kb6 {[%clk 0:00:32.4]} 38. Kf3 {[%clk 0:00:29.4]} 38... Rg8
{[%clk 0:00:31.1]} 39. Ne6 {[%clk 0:00:25.8]} 39... Rgh8 {[%clk 0:00:24.1]} 40.
Ra1 {[%clk 0:00:15.9]} 40... Rxh5 {[%clk 0:00:20]} 41. Nc5 {[%clk 0:00:16.3]}
41... Rh3+ {[%clk 0:00:16.3]} 42. Kf4 {[%clk 0:00:16.3]} 42... R8h4+ {[%clk
0:00:15.7]} 43. Kxf5 {[%clk 0:00:16.7]} 43... Rxe3 {[%clk 0:00:15.5]} 44. Ra6+
{[%clk 0:00:15.2]} 44... Kc7 {[%clk 0:00:15.5]} 45. Ra7+ {[%clk 0:00:15.4]}
45... Kb8 {[%clk 0:00:15.6]} 46. Rb7+ {[%clk 0:00:12.1]} 46... Kc8 {[%clk
0:00:14.9]} 47. Rb6 {[%clk 0:00:11.4]} 47... Kc7 {[%clk 0:00:14.3]} 48. Rb7+
{[%clk 0:00:11.6]} 48... Kc8 {[%clk 0:00:14.4]} 49. Rb6 {[%clk 0:00:11.4]} 49...
Kc7 {[%clk 0:00:14.5]} 50. Rb7+ {[%clk 0:00:11.8]} 50... Kc8 {[%clk 0:00:14.6]}
1/2-1/2

[Event "*** Titled Tuesday Blitz"]
[Site "Chess.com"]
[Date "2021.03.16"]
[Round "10"]
[White "Sanyura"]
[Black "Das_Virus_2020"]
[Result "1-0"]
[WhiteElo "2619"]
[BlackElo "2471"]
[TimeControl "180+1"]
[EndTime "11:55:03 PDT"]
[Termination "Sanyura won by resignation"]

1. e4 {[%clk 0:03:00.9]} 1... e6 {[%clk 0:02:56.5]} 2. d4 {[%clk 0:02:55.6]}
2... d5 {[%clk 0:02:56.3]} 3. Nc3 {[%clk 0:02:56.1]} 3... Nf6 {[%clk 0:02:55.8]}
4. Bg5 {[%clk 0:02:55.1]} 4... Be7 {[%clk 0:02:55.4]} 5. e5 {[%clk 0:02:55.3]}
5... Nfd7 {[%clk 0:02:55.4]} 6. h4 {[%clk 0:02:55.6]} 6... c5 {[%clk 0:02:54.7]}
7. Bxe7 {[%clk 0:02:44.9]} 7... Kxe7 {[%clk 0:02:55.6]} 8. f4 {[%clk 0:02:44.2]}
8... cxd4 {[%clk 0:02:55.2]} 9. Qxd4 {[%clk 0:02:41]} 9... Qb6 {[%clk
0:02:55.2]} 10. Nf3 {[%clk 0:02:39.9]} 10... Qxd4 {[%clk 0:02:46.2]} 11. Nxd4
{[%clk 0:02:40.8]} 11... Nc6 {[%clk 0:02:46.3]} 12. O-O-O {[%clk 0:02:34.4]}
12... h5 {[%clk 0:02:12.6]} 13. Ncb5 {[%clk 0:02:23.4]} 13... g6 {[%clk
0:01:57]} 14. Be2 {[%clk 0:02:16]} 14... a6 {[%clk 0:01:52.8]} 15. Nd6 {[%clk
0:02:14.8]} 15... Rb8 {[%clk 0:01:37.8]} 16. g4 {[%clk 0:02:13.7]} 16... hxg4
{[%clk 0:01:36.8]} 17. Bxg4 {[%clk 0:02:14.6]} 17... Ncxe5 {[%clk 0:01:20.3]}
18. fxe5 {[%clk 0:02:11.6]} 18... Nxe5 {[%clk 0:01:20]} 19. Nxc8+ {[%clk
0:02:11.8]} 19... Rbxc8 {[%clk 0:01:20.2]} 20. Be2 {[%clk 0:02:11.7]} 20... f5
{[%clk 0:01:13.1]} 21. Rde1 {[%clk 0:02:09.3]} 21... Kf6 {[%clk 0:01:12.6]} 22.
c3 {[%clk 0:01:57.7]} 22... Rh6 {[%clk 0:00:56.3]} 23. Rh3 {[%clk 0:01:39.8]}
23... Nf7 {[%clk 0:00:40.5]} 24. Nf3 {[%clk 0:01:21]} 24... e5 {[%clk 0:00:38]}
25. Ng5 {[%clk 0:01:20.8]} 25... d4 {[%clk 0:00:19.5]} 26. Kd2 {[%clk
0:01:16.7]} 26... dxc3+ {[%clk 0:00:18.7]} 27. bxc3 {[%clk 0:01:17.6]} 27...
Rd8+ {[%clk 0:00:18.5]} 28. Kc2 {[%clk 0:01:17.1]} 28... Rdh8 {[%clk 0:00:16.3]}
29. Nxf7 {[%clk 0:01:16.1]} 29... Kxf7 {[%clk 0:00:16.5]} 30. h5 {[%clk
0:01:16.5]} 30... g5 {[%clk 0:00:14.9]} 31. Rf3 {[%clk 0:01:12.4]} 31... f4
{[%clk 0:00:14]} 32. Rd3 {[%clk 0:01:12.5]} 32... e4 {[%clk 0:00:05.6]} 33. Rd5
{[%clk 0:01:11.5]} 33... f3 {[%clk 0:00:04.4]} 34. Bc4 {[%clk 0:01:11.3]} 34...
Kf6 {[%clk 0:00:03.6]} 35. Rxe4 {[%clk 0:01:10.9]} 35... Rxh5 {[%clk 0:00:03.9]}
36. Rd7 {[%clk 0:01:08.7]} 36... Kf5 {[%clk 0:00:03.6]} 37. Re1 {[%clk
0:01:04.5]} 37... Kf4 {[%clk 0:00:03.4]} 38. Rf7+ {[%clk 0:01:02.5]} 38... Kg3
{[%clk 0:00:03.5]} 39. Rg1+ {[%clk 0:01:00.7]} 39... Kf2 {[%clk 0:00:03.2]} 40.
Rf1+ {[%clk 0:00:58.1]} 40... Kg2 {[%clk 0:00:03.6]} 41. R7xf3 {[%clk
0:00:57.6]} 41... g4 {[%clk 0:00:04.3]} 42. Rf4 {[%clk 0:00:50.4]} 42... g3
{[%clk 0:00:03.7]} 43. Bd3 {[%clk 0:00:49.9]} 43... Re5 {[%clk 0:00:02.4]} 44.
Rb1 {[%clk 0:00:39.8]} 44... Rhe8 {[%clk 0:00:01.8]} 45. Bf1+ {[%clk 0:00:31]}
45... Kh2 {[%clk 0:00:01.4]} 46. Rh4+ {[%clk 0:00:31.2]} 46... Kg1 {[%clk
0:00:01.7]} 47. Bb5+ {[%clk 0:00:30.6]} 47... Kf2 {[%clk 0:00:02]} 48. Bxe8
{[%clk 0:00:26.7]} 48... Rxe8 {[%clk 0:00:02]} 49. Rf4+ {[%clk 0:00:25.6]} 49...
Ke2 {[%clk 0:00:02.2]} 50. Rg1 {[%clk 0:00:23.9]} 50... Rg8 {[%clk 0:00:02.2]}
51. Rg2+ {[%clk 0:00:21.5]} 1-0

[Event "*** Titled Tuesday Blitz"]
[Site "Chess.com"]
[Date "2021.03.16"]
[Round "10"]
[White "Zhigalko_Sergei"]
[Black "olksuna"]
[Result "1/2-1/2"]
[WhiteElo "2915"]
[BlackElo "2674"]
[TimeControl "180+1"]
[EndTime "11:55:09 PDT"]
[Termination "Game drawn by stalemate"]

1. e4 {[%clk 0:03:00.9]} 1... c5 {[%clk 0:03:00]} 2. Nf3 {[%clk 0:03:00.9]} 2...
e6 {[%clk 0:02:58.7]} 3. c3 {[%clk 0:03:00.6]} 3... Nf6 {[%clk 0:02:58.1]} 4. e5
{[%clk 0:03:00.8]} 4... Nd5 {[%clk 0:02:58.6]} 5. Bc4 {[%clk 0:03:00.8]} 5... d6
{[%clk 0:02:56.9]} 6. d4 {[%clk 0:02:59.7]} 6... cxd4 {[%clk 0:02:57.1]} 7. cxd4
{[%clk 0:03:00]} 7... Nc6 {[%clk 0:02:57.5]} 8. O-O {[%clk 0:02:59.8]} 8... Be7
{[%clk 0:02:57.8]} 9. Bd2 {[%clk 0:02:59.1]} 9... O-O {[%clk 0:02:55]} 10. Nc3
{[%clk 0:02:58.6]} 10... Nxc3 {[%clk 0:02:48.5]} 11. Bxc3 {[%clk 0:02:58.2]}
11... dxe5 {[%clk 0:02:48.7]} 12. dxe5 {[%clk 0:02:58.2]} 12... Nb4 {[%clk
0:02:28.3]} 13. Qb3 {[%clk 0:02:42.3]} 13... Nd5 {[%clk 0:02:18.2]} 14. Rfd1
{[%clk 0:02:40.5]} 14... Qb6 {[%clk 0:02:14.9]} 15. Bxd5 {[%clk 0:02:27.1]}
15... exd5 {[%clk 0:02:14.4]} 16. Qxb6 {[%clk 0:02:27]} 16... axb6 {[%clk
0:02:14.4]} 17. Rxd5 {[%clk 0:02:15.7]} 17... Be6 {[%clk 0:02:10.8]} 18. Rb5
{[%clk 0:02:15.3]} 18... Bc5 {[%clk 0:02:06.5]} 19. Bb4 {[%clk 0:02:14.9]} 19...
Bxb4 {[%clk 0:01:42.2]} 20. Rxb4 {[%clk 0:02:14.3]} 20... Bxa2 {[%clk
0:01:42.4]} 21. Rxb6 {[%clk 0:01:57.9]} 21... Bd5 {[%clk 0:01:40.1]} 22. Rxa8
{[%clk 0:01:47.1]} 22... Rxa8 {[%clk 0:01:38.2]} 23. h3 {[%clk 0:01:44]} 23...
Bxf3 {[%clk 0:01:29.7]} 24. gxf3 {[%clk 0:01:42.6]} 24... g5 {[%clk 0:01:30.3]}
25. Rb5 {[%clk 0:00:48.6]} 25... Ra1+ {[%clk 0:01:03.7]} 26. Kg2 {[%clk
0:00:48.5]} 26... Re1 {[%clk 0:01:04.6]} 27. h4 {[%clk 0:00:24.4]} 27... gxh4
{[%clk 0:00:43.4]} 28. f4 {[%clk 0:00:23.4]} 28... Re4 {[%clk 0:00:43.5]} 29. f5
{[%clk 0:00:19.3]} 29... Kg7 {[%clk 0:00:39.6]} 30. Kh3 {[%clk 0:00:05.3]} 30...
Rf4 {[%clk 0:00:34.5]} 31. Rxb7 {[%clk 0:00:04.4]} 31... Rxf5 {[%clk 0:00:13.5]}
32. e6 {[%clk 0:00:04.1]} 32... Re5 {[%clk 0:00:07.3]} 33. exf7 {[%clk
0:00:02.6]} 33... Rf5 {[%clk 0:00:05.6]} 34. b4 {[%clk 0:00:01.9]} 34... Rxf2
{[%clk 0:00:05.5]} 35. b5 {[%clk 0:00:01.5]} 35... Rb2 {[%clk 0:00:05.5]} 36. b6
{[%clk 0:00:01.9]} 36... Rb4 {[%clk 0:00:05.5]} 37. Kh2 {[%clk 0:00:02.2]} 37...
Rb3 {[%clk 0:00:05.1]} 38. Kg2 {[%clk 0:00:02.7]} 38... h3+ {[%clk 0:00:05.3]}
39. Kh2 {[%clk 0:00:03.2]} 39... Kf8 {[%clk 0:00:04.5]} 40. Rc7 {[%clk
0:00:02.9]} 40... Rxb6 {[%clk 0:00:03.7]} 41. Kxh3 {[%clk 0:00:03.6]} 41... Rf6
{[%clk 0:00:03.9]} 42. Kg4 {[%clk 0:00:04.2]} 42... Rxf7 {[%clk 0:00:04.2]} 43.
Rxf7+ {[%clk 0:00:04.4]} 43... Kxf7 {[%clk 0:00:05.1]} 44. Kh5 {[%clk
0:00:05.3]} 44... Kg7 {[%clk 0:00:06]} 45. Kg5 {[%clk 0:00:05.7]} 45... h6+
{[%clk 0:00:06.9]} 46. Kh5 {[%clk 0:00:06.6]} 46... Kh7 {[%clk 0:00:07.6]} 47.
Kg4 {[%clk 0:00:07.3]} 47... Kg6 {[%clk 0:00:08.5]} 48. Kh4 {[%clk 0:00:08.2]}
48... h5 {[%clk 0:00:09.4]} 49. Kg3 {[%clk 0:00:08.5]} 49... Kh6 {[%clk
0:00:10.3]} 50. Kh3 {[%clk 0:00:09.4]} 50... Kg5 {[%clk 0:00:11.2]} 51. Kg3
{[%clk 0:00:10.2]} 51... h4+ {[%clk 0:00:12.1]} 52. Kh3 {[%clk 0:00:11.1]} 52...
Kh5 {[%clk 0:00:13]} 53. Kg2 {[%clk 0:00:12]} 53... Kg4 {[%clk 0:00:13.9]} 54.
Kh2 {[%clk 0:00:12.9]} 54... h3 {[%clk 0:00:14.8]} 55. Kg1 {[%clk 0:00:13.6]}
55... Kh4 {[%clk 0:00:15.7]} 56. Kh1 {[%clk 0:00:14.5]} 56... Kg3 {[%clk
0:00:16.6]} 57. Kg1 {[%clk 0:00:15.4]} 57... h2+ {[%clk 0:00:17.5]} 58. Kh1
{[%clk 0:00:16.3]} 58... Kh3 {[%clk 0:00:18.4]} 1/2-1/2